Cogmind - Beta 14 @@@ ROGUE MODE // 2024.08.24 @ 14:24:01 Player: THN-L0C Result: Self-destructed Performance ------------- Evolutions (0) 0 Regions Visited (5) 1000 Robots Destroyed (33) 165 Value Destroyed (898) 898 Prototype IDs (18) 360 Alien Tech Used (0) 0 Bonus (491) 491 TOTAL SCORE: 2914 Bonus ------- Follower Combat Kills 257 Registered with UFD 300 Friendly Fire -66 Cogmind --------- Core Integrity 62/250 Matter 55/300 Energy 265/265 System Corruption 0% Temperature Cool (0) Movement Rolling (70) Location -9/Scraptown Parts ------- > --- POWER (1) -------- Improved Ion Engine > --- PROPULSION (2) --- Overtuned Huge Scrapsphere > --- UTILITY (2) ------ Scrap Suit > --- WEAPON (2) ------- Heavy Riot Gun Power Sword > --- INVENTORY (5) ---- Compact Wheel Armored Wheel Improved Field Recycling Unit (181) Peak State ------------ > --- POWER ------------ Improved Ion Engine > --- PROPULSION ------- Overtuned Huge Scrapsphere > --- UTILITY ---------- Scrap Suit > --- WEAPON ----------- Heavy Riot Gun Power Sword > --- INVENTORY -------- Compact Wheel Armored Wheel Improved Field Recycling Unit [Rating: 31] Favorites ----------- Power Light Ion Engine Engine Light Ion Engine Propulsion Light Treads Treads Light Treads Leg Titanium Leg Wheel Subdweller Monowheel Hover Unit Hover Unit Utility Large Storage Unit Device Improved Terrain Scanner Storage Large Storage Unit Protection Makeshift Light Armor Plating Weapon Minigun Energy Gun Heavy Riot Gun Ballistic Gun Minigun Ballistic Cannon Flak Cannon Launcher Subdweller Shrapnel Launcher Special Weapon Mining Laser Slashing Weapon Power Sword Build | -11 -10 -10 -10 -9 -9 ------- Run | Yrd Mat Min Sub Rec Scr Slots Evolved . | . . . . . . Power . | . . . . . . Propulsion . | . . . . . . Utility . | . . . . . . Weapon . | . . . . . . Parts Attached 103 | 7 8 8 63 5 12 Power 5 | 1 2 . . 1 1 Engine 5 | 1 2 . . 1 1 Core . | . . . . . . Reactor . | . . . . . . Propulsion 19 | 2 2 5 4 1 5 Treads 10 | 2 . 4 2 . 2 Leg 2 | . . . 1 1 . Wheel 6 | . 1 1 1 . 3 Hover 1 | . 1 . . . . Flight . | . . . . . . Utility 54 | 2 3 1 41 2 5 Device 37 | 1 . 1 31 1 3 Storage 4 | 1 2 . . . 1 Processor . | . . . . . . Hackware . | . . . . . . Protection 13 | . 1 . 10 1 1 Artifact . | . . . . . . Weapon 25 | 2 1 2 18 1 1 Energy Gun 3 | . . 1 1 1 . Energy Cannon . | . . . . . . Ballistic Gun 5 | 2 1 1 1 . . Ballistic Cannon 5 | . . . 5 . . Launcher 4 | . . . 4 . . Special Weapon 7 | . . . 7 . . Impact Weapon . | . . . . . . Slashing Weapon 1 | . . . . . 1 Piercing Weapon . | . . . . . . Special Melee Weapon . | . . . . . . Unidentified Prototypes 1 | . . . 1 . . Parts Lost 3 | . 2 . 1 . . Power 1 | . 1 . . . . Propulsion 2 | . 1 . 1 . . Utility . | . . . . . . Weapon . | . . . . . . Highest Loss Streak 1 | . 1 . 1 . . To Critical Strikes . | . . . . . . Average Slot Usage (%) 98 | . 95 100 99 100 96 Engine 13 | . 13 14 14 14 13 Treads 21 | . 21 23 25 14 11 Leg 2 | . . . . 13 7 Wheel 4 | . . 4 2 . 8 Device 9 | . 6 12 12 1 3 Storage 13 | . 14 14 14 14 10 Protection 4 | . 7 1 1 12 10 Energy Gun 4 | . . 10 . 12 14 Ballistic Gun 12 | . 28 17 11 14 13 Ballistic Cannon 2 | . . . 4 . . Launcher 1 | . . . 1 1 . Special Weapon 6 | . . . 9 . . Peak Build Rating 31 | 7 8 14 20 22 31 Average Rating 17 | 5 6 12 16 21 21 On Entrance 11 | . 7 8 14 18 22 Naked Turns . | . . . . . . Heaviest Build 58 | 12 30 30 41 36 58 Greatest Support 40 | 40 40 40 40 20 40 Greatest Overweight (x) 19 | . 2 2 1 1 19 Average Overweight (x) . | . . . . 1 . Largest Inventory Capacity 20 | 8 15 15 15 15 20 Average Capacity 14 | 7 14 15 15 15 13 Most Carried 20 | 1 11 15 15 15 20 Average Carried 13 | . 5 14 14 14 12 Final Capacity 15 | 8 15 15 15 15 5 Final Carried 15 | 1 11 15 15 15 3 Class Distribution -------------------- 83% | Mutant 13% | Scavenger-Mutant Dominant Class ---------------- Mutant | -10/Materials Scavenger-Mutant | -10/Mines Mutant | -10/Subcaves Mutant | -9/Recycling Mutant | -9/Scraptown Resources | -11 -10 -10 -10 -9 -9 ----------- Run | Yrd Mat Min Sub Rec Scr Matter Collected 2683 | 290 332 118 863 224 856 Remotely . | . . . . . . Salvage Created 1526 | 161 391 37 290 315 332 Parts 83 | 12 21 3 28 7 12 Haulers Intercepted . | . . . . . . Recyclers Shooed 2 | 1 . . . 1 . Parts Field Recycled 63 | . . . . . 63 Retrieved Matter 448 | . . . . . 448 Parts Self-Destructed 11 | . . . 9 . 2 Prevented . | . . . . . . Kills | -11 -10 -10 -10 -9 -9 ------- Run | Yrd Mat Min Sub Rec Scr Combat Hostiles Destroyed 23 | . 7 3 12 1 . Guns 11 | . 7 3 1 . . Cannons 6 | . . . 6 . . AOE 6 | . . . 5 1 . Classes Destroyed 8 | 2 3 1 1 1 . Worker 1 | . 1 . . . . Builder 2 | . 2 . . . . Tunneler 3 | 3 . . . . . Recycler 4 | 1 . . . 3 . Swarmer 3 | . . 3 . . . Grunt 7 | . 7 . . . . Sentry 1 | . . . . 1 . Subdweller 12 | . . . 12 . . Best Kill Streak 4 | 4 4 3 3 3 . Combat Bots Only 4 | . 4 3 3 1 . Max Kills in Single Turn 3 | 1 1 1 2 3 . Gunslinging . | . . . . . . Exploded 2 | . . . 2 1 . Melee . | . . . . . . Uniques/NPCs Destroyed . | . . . . . . Combat | -11 -10 -10 -10 -9 -9 -------- Run | Yrd Mat Min Sub Rec Scr Hostile Shots Fired 114 | . 48 5 37 5 19 Missed 33 | . 12 1 11 4 5 Damage Taken 1329 | . 488 69 566 19 187 Core 188 | . 40 . 85 5 58 Absorbed by Shields . | . . . . . . Redirected to Shielding 27 | . 27 . . . . Core Remaining (%) 100 | 100 . . . . . Volleys Fired 146 | 5 30 6 98 7 . Largest 2 | 2 2 2 2 2 . Hottest 125 | 40 40 75 125 85 . Shots Fired 200 | 10 60 7 112 11 . Gun 103 | 10 60 7 15 11 . Cannon 29 | . . . 29 . . Launcher 9 | . . . 9 . . Special 59 | . . . 59 . . Kinetic 131 | 10 60 6 51 4 . Thermal 59 | . . . 59 . . Explosive . | . . . . . . Electromagnetic 10 | . . 1 2 7 . Robot Hit Streak 12 | 4 12 4 11 7 . Robot Miss Streak 3 | 1 1 1 3 2 . Penetration Max . | . . . . . . Secondary Targets 2 | . 2 . . . . Max Gunslinging Chain 1 | . 1 . . . . Shots Hit Robots 109 | 7 48 5 30 9 10 Core Hits 67 | 6 18 3 29 6 5 Critical Kills 1 | . 1 . . . . Critical Parts Destroyed . | . . . . . . Critical Strikes 1 | . 1 . . . . Destroy 1 | . 1 . . . . Melee Attacks 10 | . . . . . 10 Impact . | . . . . . . Slashing 10 | . . . . . 10 Piercing . | . . . . . . Sneak Attacks . | . . . . . . Combat Hostiles . | . . . . . . Follow-up Attacks . | . . . . . . Damage Inflicted 2902 | 90 617 87 1136 206 766 Guns 1070 | 90 608 86 165 121 . Cannons 414 | . . . 414 . . Explosions 642 | . . . 557 85 . Melee 766 | . . . . . 766 Ramming 10 | . 9 1 . . . Kinetic 1944 | 90 608 86 1106 54 . Thermal 85 | . . . . 85 . Explosive . | . . . . . . Electromagnetic 97 | . . . 30 67 . Impact . | . . . . . . Slashing 766 | . . . . . 766 Piercing . | . . . . . . Highest Corruption . | . . . . . . Average Corruption . | . . . . . . Corruption Purged . | . . . . . . Corruption Blocked . | . . . . . . Overload Shots . | . . . . . . Overflow Damage 192 | . . . . . 192 Projectiles . | . . . . . . Explosions . | . . . . . . Melee 192 | . . . . . 192 Knockbacks 11 | . . . 11 . . Impact . | . . . . . . Kinetic 11 | . . . 11 . . Secondary . | . . . . . . Self-Inflicted Damage 40 | . . . 35 5 . Shots 2 | . . . 1 1 . Rammed 3 | . 1 1 1 . . Targets Rammed 3 | . 1 1 1 . . Kicked . | . . . . . . Crushed . | . . . . . . Highest Temperature 222 | . 15 34 . 222 . Average Temperature 59 | . 3 13 . 101 . Received Heat Transfer 345 | . 300 18 18 9 . Siege Activations . | . . . . . . Robots Corrupted . | . . . . . . Combat Hostiles . | . . . . . . Parts Fried . | . . . . . . Impact Corruptions . | . . . . . . Robots Melted . | . . . . . . Combat Hostiles . | . . . . . . Parts Melted . | . . . . . . Heat Transferred 100 | . . . . 100 . Parts Sabotaged . | . . . . . . Parts Stolen . | . . . . . . Parts Stripped . | . . . . . . Power Chain Reactions 1 | . . . . 1 . Alert | -11 -10 -10 -10 -9 -9 ------- Run | Yrd Mat Min Sub Rec Scr Peak Influence 205 | 20 205 103 . 125 . Initial 27 | . 13 27 . . . Average 57 | 6 79 40 . 57 . Maximum Alert Level 1 | . 1 . . . . Low Security (%) 99 | 100 98 100 . 100 . Level 1 . | . 1 . . . . Level 2 . | . . . . . . Level 3 . | . . . . . . Level 4 . | . . . . . . Level 5 . | . . . . . . High Security . | . . . . . . Max Security . | . . . . . . Squads Dispatched 3 | . 2 1 . . . Investigation 2 | . 1 1 . . . Extermination . | . . . . . . Reinforcement 1 | . 1 . . . . Assault . | . . . . . . Garrison . | . . . . . . Intercept . | . . . . . . Searches Triggered . | . . . . . . Construction Impeded . | . . . . . . Haulers Reinforced . | . . . . . . Active Scanning Responses . | . . . . . . Cargo Convoy Interrupts . | . . . . . . Stealth | -11 -10 -10 -10 -9 -9 --------- Run | Yrd Mat Min Sub Rec Scr Distress Signals 2 | . 1 . . . 1 Communications Jammed . | . . . . . . Distress Signals . | . . . . . . Times Spotted 43 | . 17 4 17 1 4 Peak Tracking Total 10 | . 5 3 3 1 10 Tactical Retreats . | . . . . . . Traps | -11 -10 -10 -10 -9 -9 ------- Run | Yrd Mat Min Sub Rec Scr Traps Triggered 2 | . 1 . 1 . . Indirectly . | . . . . . . Trap Hack Attempts . | . . . . . . Triggered . | . . . . . . Disarmed . | . . . . . . Reprogrammed . | . . . . . . Reused . | . . . . . . Traps Extracted . | . . . . . . Installed 2 | . . . 2 . . Triggered . | . . . . . . Most Traps Carried 4 | . . 4 4 . . Machines | -11 -10 -10 -10 -9 -9 ---------- Run | Yrd Mat Min Sub Rec Scr Machines Disabled 7 | . . 1 1 . 5 Max in Single Turn 1 | . . 1 1 . . Machines Repaired . | . . . . . . Machines Dismantled . | . . . . . . Machines Sabotaged . | . . . . . . Overloaded Fab Kills . | . . . . . . Hacking | -11 -10 -10 -10 -9 -9 --------- Run | Yrd Mat Min Sub Rec Scr Machines Accessed 19 | . 4 1 3 9 2 Terminals 8 | . 4 . . 4 . Fabricators . | . . . . . . Repair Stations . | . . . . . . Recycling Units 5 | . . . . 5 . Scanalyzers . | . . . . . . Garrison Access . | . . . . . . Total Hacks 65 | . 15 1 6 24 19 Successful 45 | . 7 1 6 12 19 Failed 19 | . 7 . . 12 . Catastrophic 3 | . 1 . . 2 . Database Lockouts 1 | . 1 . . . . Manual 29 | . 9 . . 20 . Terminals 32 | . 15 . . 17 . Fabricators . | . . . . . . Repair Stations . | . . . . . . Recycling Units 7 | . . . . 7 . Scanalyzers . | . . . . . . Garrison Access . | . . . . . . Terminal Hacks 37 | . 7 1 6 4 19 Record 23 | . . . 4 . 19 Robot Schematic 1 | . . . . 1 . Robot Analysis 4 | . 3 . . 1 . Open Door 2 | . . 1 1 . . Locate Traps 2 | . 2 . . . . Maintenance Status 1 | . 1 . . . . Zone Layout 3 | . 1 . . 2 . Derelict Proto ID Bank 1 | . . . 1 . . Fabricator Hacks . | . . . . . . Repair Station Hacks . | . . . . . . Recycling Unit Hacks 1 | . . . . 1 . Report Inventory 1 | . . . . 1 . Scanalyzer . | . . . . . . Garrison Access Hacks . | . . . . . . Unauthorized Hacks 7 | . . . . 7 . Terminals 2 | . . . . 2 . Botnet 2 | . . . . 2 . Fabricators . | . . . . . . Repair Stations . | . . . . . . Recycling Units 5 | . . . . 5 . Tunnel 5 | . . . . 5 . Scanalyzers . | . . . . . . Garrison Access . | . . . . . . Data Cores Recovered . | . . . . . . Used . | . . . . . . Hacking Detections 9 | . 4 . . 5 . Full Trace Events 1 | . . . . 1 . Feedback Events . | . . . . . . Feedback Blocked . | . . . . . . Robot Schematics Acquired 1 | . . . . 1 . Robots Built . | . . . . . . Authchips . | . . . . . . Time . | . . . . . . Total Robot Build Rating . | . . . . . . Part Schematics Acquired . | . . . . . . Parts Built . | . . . . . . Authchips . | . . . . . . Time . | . . . . . . Total Part Build Rating . | . . . . . . Parts Repaired . | . . . . . . Time . | . . . . . . Parts Recycled . | . . . . . . Recycled Matter . | . . . . . . Retrieved Matter . | . . . . . . Retrieved Components . | . . . . . . Parts Scanalyzed . | . . . . . . Part Schematics Acquired . | . . . . . . Parts Damaged . | . . . . . . Bothacking | -11 -10 -10 -10 -9 -9 ------------ Run | Yrd Mat Min Sub Rec Scr Used RIF Installer . | . . . . . . Robots Hacked . | . . . . . . Non-combat . | . . . . . . Combat . | . . . . . . Robot Hacks Applied . | . . . . . . Relay Couplers Released . | . . . . . . Fabnet Peak Effective % . | . . . . . . Robots Rewired . | . . . . . . Allies Hacked . | . . . . . . Hacks Repelled . | . . . . . . Allies | -11 -10 -10 -10 -9 -9 -------- Run | Yrd Mat Min Sub Rec Scr Total Allies 10 | . . 4 1 . 5 Largest Group 5 | . . 4 3 1 5 Highest-Rated Group 235 | . . 71 40 19 235 Highest-Rated Ally 47 | . . 31 19 19 47 Total Orders . | . . . . . . Ally Attacks 73 | . . 2 31 4 36 Total Damage 1161 | . . 31 352 93 685 Kills 10 | . . . 4 . 6 Allies Corrupted . | . . . . . . Allies Melted . | . . . . . . Intel | -11 -10 -10 -10 -9 -9 ------- Run | Yrd Mat Min Sub Rec Scr Robot Analysis Total 4 | . 3 . . 1 . Derelict Logs Recovered 5 | . . 1 1 . 3 Drone Launches . | . . . . . . Drone Recoveries . | . . . . . . Exploration | -11 -10 -10 -10 -9 -9 ------------- Run | Yrd Mat Min Sub Rec Scr Turns Passed 28529 | 116 974 864 17614 938 8023 Spaces Moved 9931 | 58 468 560 3883 398 4564 Core 5 | 4 . . . . 1 Treads 6919 | 54 444 366 3399 363 2293 Legs . | . . . . . . Wheels 3007 | . 24 194 484 35 2270 Hover . | . . . . . . Flight . | . . . . . . Fastest Speed 50 | 50 110 110 120 120 70 Average Speed 170 | 152 183 144 165 229 171 Slowest Speed 1000 | 160 240 240 250 240 1000 Overloaded Moves . | . . . . . . Propulsion Burnouts . | . . . . . . Robots Hopped . | . . . . . . Cave-ins Triggered . | . . . . . . Exploration Rate (%) 71 | 4 78 99 92 64 93 Regions Visited 5 Branch Regions 4 Pre-discovered Areas 6 | . . . . 5 1 Known Exits Taken . | . . . . . . Unknown Exits Taken 5 | 1 1 1 1 1 . Scrap Searched 16 | . . 1 13 . 2 Spaces Dug . | . . . . . . Terrain Destroyed 115 | . . . 112 3 . Melee . | . . . . . . Projectile . | . . . . . . AOE 115 | . . . 112 3 . Terrain Rammed . | . . . . . . Walls Destroyed . | . . . . . . Machines Disabled . | . . . . . . Actions | -11 -10 -10 -10 -9 -9 --------- Run | Yrd Mat Min Sub Rec Scr Total 21183 | 73 518 613 14805 413 4761 Wait 10888 | 3 2 12 10737 1 133 Move 9926 | 57 467 559 3882 397 4564 Hop . | . . . . . . Pick Up 44 | 1 7 14 8 1 13 Fast Attach 18 | 7 3 . 1 . 7 Attach 4 | . . . 1 . 3 Detach 8 | . 1 . 1 . 6 Swap 82 | . 5 8 61 5 3 Drop 43 | . 2 13 13 2 13 Fire 146 | 5 30 6 98 7 . Melee 10 | . . . . . 10 Ram 2 | . . 1 1 . . Kick . | . . . . . . Crush 1 | . 1 . . . . Escape Stasis . | . . . . . . Rewire 9 | . . . . . 9 Trap 2 | . . . 2 . . Miscellaneous . | . . . . . . Route ------- -11/Scrapyard -10/Materials (discovered 4 exits: [*Mat x2] / *Min x2) -10/Mines (discovered 3 exits: [*Mat x2] / *Sub) -10/Subcaves (discovered 3 exits: [*Mat x2] / *Rec) -9/Recycling (discovered 2 exits: [*Fac] / *Scr) -9/Scraptown (discovered 2 exits: [*Fac x2]) History --------- Turn | Location | Event 13 | -11/Scrapyard | Discovered new exit (range 15) 117 | -11/Scrapyard | Entered Materials 308 | -10/Materials | Build established: Mutant 432 | -10/Materials | Discovered new exit (range 14) 756 | -10/Materials | Discovered new exit (range 12) 761 | -10/Materials | Central database locked down 817 | -10/Materials | Discovered new exit (range 16) 935 | -10/Materials | Discovered new exit (range 12) 1091 | -10/Materials | Entered Mines 1143 | -10/Mines | Found a hidden stash of uninstalled traps 1276 | -10/Mines | Met a Derelict shopkeep closing up shop 1328 | -10/Mines | Joined a pair of Derelicts in attacking an 0b10 outpost 1485 | -10/Mines | Discovered new exit (range 7) 1490 | -10/Mines | Learned Materials emergency access door positions 1490 | -10/Mines | Assisted by bots powering up and referring to "LRC-V3" 1568 | -10/Mines | Received a Mining Laser from a helpful Derelict 1630 | -10/Mines | Build established: Scavenger-Mutant 1669 | -10/Mines | Discovered new exit (range 9) 1942 | -10/Mines | Discovered new exit (range 3) 1955 | -10/Mines | Entered Subcaves 1955 | -10/Subcaves | Accompanied by 3 allies 2097 | -10/Subcaves | A swath of the cavern ceiling suddenly collapsed 2519 | -10/Subcaves | Shifting Twisted Machinery released Battle Cannon 2530 | -10/Subcaves | Shifting Twisted Machinery released Battle Rifle 2561 | -10/Subcaves | Discovered new exit (range 12) 2609 | -10/Subcaves | Build established: Mutant 2710 | -10/Subcaves | A swath of the cavern ceiling suddenly collapsed 2840 | -10/Subcaves | Discovered new exit (range 5) 2878 | -10/Subcaves | Visited 4L-MR0's lab 2908 | -10/Subcaves | Found Cargo Legs 4081 | -10/Subcaves | Shifting Twisted Machinery released Sub. Beam Cannon 4083 | -10/Subcaves | Shifting Twisted Machinery released Hvy. Riot Gun 4130 | -10/Subcaves | Learned Materials stockpile data 5879 | -10/Subcaves | Visited Clippyterm 5884 | -10/Subcaves | Learned Factory fabricator intel 16610 | -10/Subcaves | Shifting Twisted Machinery released Sub. Machine Gun 16701 | -10/Subcaves | Visited triangular shrine 16709 | -10/Subcaves | Found Prototype Device 16709 | -10/Subcaves | Identified V3-11A's Pendant 16714 | -10/Subcaves | Befriended Subdweller 16986 | -10/Subcaves | Build established: Scavenger-Mutant 19463 | -10/Subcaves | Discovered new exit (range 4) 19569 | -10/Subcaves | Entered Recycling 19569 | -9/Recycling | Accompanied by 1 ally 19720 | -9/Recycling | Core integrity fell below 50% 19920 | -9/Recycling | Build established: Mutant 20229 | -9/Recycling | Discovered new exit (range 8) 20445 | -9/Recycling | Scanned before Scraplab entrance 20481 | -9/Recycling | Entered Scraplab 20500 | -9/Recycling | Discovered new exit (range 3) 20507 | -9/Recycling | Entered Scraptown 20555 | -9/Scraptown | Heard Great Nut preacher, LISTEN AND RECITE! 20685 | -9/Scraptown | Delivered V3-11A's Pendant to T0-NE2 in exchange for information 21164 | -9/Scraptown | Discovered new exit (range 7) 21346 | -9/Scraptown | Scanned Subdweller tech in exchange for log data 21356 | -9/Scraptown | Learned Research trap positions 21358 | -9/Scraptown | Learned Research stockpile data 21420 | -9/Scraptown | Visited Symbiants 21514 | -9/Scraptown | Visited Red Mages 21572 | -9/Scraptown | Found Relay Coupler [Proto] 22002 | -9/Scraptown | Visited UFD Registry 22002 | -9/Scraptown | Registered with UFD as "Scrapframe" 22254 | -9/Scraptown | Delivered Scrap Shield to a Scientist 22478 | -9/Scraptown | Visited Chapter 10 22636 | -9/Scraptown | Visited Scrapoid Pod Storage 22698 | -9/Scraptown | Visited Junk Repository 22797 | -9/Scraptown | Visited LU-1G1's Boring Crew 22926 | -9/Scraptown | Visited Science Testing Area 22984 | -9/Scraptown | Visited Supply Room 23063 | -9/Scraptown | Visited Scrapoid Research Area 23166 | -9/Scraptown | Visited Observation Area 23279 | -9/Scraptown | Visited Infowarlord's Domain 23342 | -9/Scraptown | Visited Research Penetration Think Tank 23661 | -9/Scraptown | Discovered new exit (range 5) 23906 | -9/Scraptown | Visited TADAMA 23970 | -9/Scraptown | Visited SPCMW 24042 | -9/Scraptown | Visited Spacefarers 24150 | -9/Scraptown | Visited CPS Storage 24177 | -9/Scraptown | Visited Cyclists 24215 | -9/Scraptown | Entered Cyclist Reading Room 24398 | -9/Scraptown | Guru changed UFD alias to "Scrapsourcer" 26327 | -9/Scraptown | Build established: Derelict-Mutant 26699 | -9/Scraptown | Found Scrapoid Pod 26972 | -9/Scraptown | Build established: Mutant 28462 | -9/Scraptown | Attacked by Scraptown defenders 28489 | -9/Scraptown | Scrapoid Pod released 09S07-D (x5) 28501 | -9/Scraptown | Found Scrap Suit 28530 | -9/Scraptown | Self-destructed Last Messages --------------- 28489_ Penetrated by Bolt. 28490_ Slug penetrates DW-YRK(c). 28490_ Slug penetrates 09S07-D. 28490_ Slug penetrates Machine. 28491_ DW-YRK(c) destroyed. 28491_ Slug penetrates Machine. 28492_ Bolt penetrates Machine. 28492_ Slug penetrates EI-9AE(h). 28492_ UFD Mainframe disabled. 28493_ Slug penetrates EI-9AE(h). 28493_ EI-9AE(h) suffers critical hit (Destroy). 28493_ CPS modules swiftly deploy to protect EI-9AE(h) components. 28493_ EI-9AE(h) destroyed. 28501_ Acquired Scrap Suit. 28508_ Acquired Ovr. Huge Scrapsphere. 28517_ 09S07-D cannibalizes Ovr. Pulse Rifle to repair Ovr. Beamcaster. 28527_ J9-TW7(t) sends out distress signal. 28527_ J9-TW7(t) suffers critical hit (Burn). 28528_ Slug penetrates J9-TW7(t). 28528_ J9-TW7(t) destroyed. Map ----- +----------------------------------------------------+ | "#####??????????????????????#"""##"""##"" ##"""#?? | | "#??????????????????????????#"" ##"" ##"" ##!!"### | | "#??????????????????????????#"" | | "#??????????????????????????# | | "#??????????????????????????###################### | | "#???????????????????????????????????????????????? | | ##????????????????###########????????????????????? | | ??????????????????#""""" | #????????????????????? | | ###???????????????# " " [ " #????????????????????? | | ""#???????????????# """#???????????########## | | "#???????????????# """#???????????# | | "#???????????????# " ! """#??########## | | #???????????????#""" " #??# """!""# | | #"#???????????????#"""=! #??# "" "# !! | | ########??????????#""" ""#??#"" " # | | "#??????????# " "#??#"" "# | | X#??????????# "#??# # | | "#??????????# #??# # | | #??????????#### ######??### ########### ### | | ##########???????##### ########### ########### ### | | #???????#"""" """ """ """ """""" """ | | #???????#" ss / !% [* E | | #???????#" ss !% * !%!%! | | #???????#" s = [ *t | | #???????#" | | #???#####" =! @ | | #???#"""" [%!"" """""" """""""""""""""" | | #???#"""" *[ "" """""""""""""""""""""" | | #???#"""" "###### ################ | | #???#"""" "# #?????????# | | #???#"""" " # X"?????????# | | ###?#"""" ""# "" "" ##????????# | | ""#"#"""" ""# "" "" X"???????### | | """"#""" ""# " " ######### # | | ""#######" "" "" | | ###?????#" "" "" | | ######### ""# " " ######### # | | ""# "" "" ""#??????### | | ""# "" "" ##????????# | | ""# ""?????????# | | ""#? #?????????# | | ""###### ################ | | """""""""""""""""""""""""" | | """""""""""""""""""""""""" | | | | | | | | #""""#" | | #????#" | | #????#"""""" """"""""""" """"""""""" " | +----------------------------------------------------+ Best States ------------- Heat Dissipation 25 Energy Generation 15 Energy Capacity 265 Matter Stores 300 Matter Capacity 300 Sight Range 16 Terrain Scan Range 16 Terrain Scan Density 10 Armor Coverage 100 Power Shielding 33 Evasion (%) 46 Recoil Reduction 2 Item Schematics ----------------- None Robot Schematics ------------------ M-13 Machinist | -9/Recycling | Hacked Fabricated ------------ Nothing Alien Tech Used ----------------- None Achievements -------------- None Challenges ------------ None Game ------ Seed MicroRingKit Manual? 0 Play Time 01:18:20 Cumulative 119.5 hours Start 2024.08.24 @ 13:05:23 End 2024.08.24 @ 14:24:01 Sessions 1 Manual Loads 0 Difficulty Rogue Special Mode None Game No. 101 Rogue 101 Adventurer 0 Explorer 0 Win Type - Total 0 Types 0/0/0/0/0/0/0/0/0 Lore% 52 Gallery% 60 Achievement% 48 Wizard Run 0 Options --------- Layout 2 ASCII 0 Keyboard 1 Movement Vi Keybinds 0 Fullscreen 1 Font 32/SmallcapsGlow Map View 77x44 Zoom Use 0% Tactical HUD 1 Map Filters NONE Filters NONE Steam 1 RUN: 3ca52703-ed51-4558-bfd8-4f1459ee3054